bitfinex/quotes_BTCUSD_20260311
["timestamp","ask_amount","ask_price","bid_price","bid_amount"]
[1773246100870,0.00166001,70372.0,70340.0,0.12735777]
[1773246101000,0.00144,70371.0,70341.0,0.11150866]
[1773246101202,0.07105309,70370.0,70341.0,0.11150866]
[1773246101598,0.07116595,70369.0,70341.0,0.11150866]
[1773246101941,0.18640575,70369.0,70341.0,0.11150866]
[1773246102093,0.1152398,70368.0,70341.0,0.11150866]
[1773246102494,0.07116595,70369.0,70343.0,0.11006866]
[1773246102495,0.00011169,70369.0,70343.0,0.11006866]
[1773246102919,0.1152398,70368.0,70343.0,0.11006866]
[1773246103542,0.1152398,70368.0,70342.0,0.07108128]
[1773246103543,0.00011169,70369.0,70351.0,0.11006866]
[1773246103713,0.00011169,70369.0,70352.0,0.00144]
[1773246104498,0.00011169,70369.0,70353.0,0.07107017]
[1773246105549,1e-08,70372.0,70354.0,0.11006866]
[1773246105750,1e-08,70372.0,70360.0,0.11006866]
[1773246106073,1e-08,70372.0,70354.0,0.00011169]
[1773246106074,1e-08,70372.0,70361.0,0.00144]
[1773246106424,1e-08,70372.0,70362.0,0.00144]
[1773246106608,1e-08,70372.0,70354.0,0.11018035]
[1773246106609,1e-08,70372.0,70363.0,0.00144]
[1773246106777,1e-08,70372.0,70364.0,0.00144]
[1773246106984,1e-08,70372.0,70365.0,0.00144]
[1773246108445,1e-08,70376.0,70365.0,0.00144]
[1773246108653,0.00022001,70369.0,70366.0,0.07105704]
[1773246108854,1e-08,70376.0,70365.0,0.07105798]
[1773246108855,0.1152398,70373.0,70365.0,0.07105798]
[1773246110395,1e-08,70376.0,70365.0,0.07105798]
[1773246110732,0.00014209,70379.0,70365.0,0.07105798]
[1773246110733,1e-08,70381.0,70366.0,0.11051917]
[1773246110951,0.00144,70397.0,70371.0,0.11051917]
[1773246111147,0.00144,70396.0,70373.0,0.11051917]
[1773246111348,0.07102197,70401.0,70373.0,0.11051917]
[1773246111545,0.00185911,70398.0,70373.0,0.11051917]
[1773246111750,0.07288417,70398.0,70373.0,0.11051917]
[1773246112498,0.17727233,70397.0,70373.0,0.11051917]
[1773246112862,0.17727233,70397.0,70374.0,0.07104896]
[1773246112863,0.14148115,70396.0,70374.0,0.07104896]
[1773246113496,0.14148115,70396.0,70374.0,0.18099504]
[1773246113693,0.10624645,70397.0,70375.0,0.10994608]
[1773246114396,0.2477276,70397.0,70375.0,0.10994608]
[1773246114809,0.10624645,70397.0,70376.0,0.07104694]
[1773246115579,0.10624645,70397.0,70376.0,0.18060503]
[1773246115932,0.00033174,70391.0,70376.0,0.18060503]
[1773246117117,0.00033174,70391.0,70377.0,0.10936563]
[1773246117325,0.00033174,70391.0,70378.0,0.00144]
[1773246119163,0.00033174,70391.0,70379.0,0.07104391]
[1773246120246,0.00033174,70391.0,70360.0,0.07106209]
[1773246120247,0.10624645,70390.0,70360.0,0.07106209]
[1773246120463,0.10624645,70390.0,70361.0,0.00144]
[1773246120657,0.00033174,70391.0,70371.0,0.10860576]
[1773246120813,0.00033174,70391.0,70373.0,0.10860576]
[1773246121200,0.10666556,70398.0,70380.0,0.12735777]
[1773246121410,1e-08,70405.0,70381.0,0.11567999]
[1773246121618,1e-08,70406.0,70389.0,0.11423999]
[1773246121854,1e-08,70406.0,70391.0,0.11423999]
[1773246122358,0.07101716,70406.0,70392.0,0.00144]
[1773246122576,1e-08,70406.0,70393.0,0.00144]
[1773246122857,1e-08,70406.0,70395.0,0.11423999]
[1773246123015,1e-08,70406.0,70395.0,0.11567999]
[1773246123221,1e-08,70406.0,70396.0,0.07102676]
[1773246124472,1e-08,70406.0,70397.0,0.11423999]
[1773246124674,0.0822476,70415.0,70397.0,0.11423999]
[1773246124675,0.01124,70415.0,70397.0,0.11423999]
[1773246125075,0.08224824,70415.0,70397.0,0.11423999]
[1773246125312,0.09726888,70414.0,70396.0,0.00144]
[1773246125518,0.09748889,70414.0,70381.0,0.0710419]
[1773246125664,0.09748889,70414.0,70382.0,0.00144]
[1773246125845,0.09748889,70414.0,70383.0,0.00144]
[1773246126394,0.09748889,70414.0,70391.0,0.001]
[1773246127218,0.09686581,70412.0,70391.0,0.001]
[1773246127525,0.22104225,70409.0,70392.0,0.07247079]
[1773246127674,0.09662279,70408.0,70392.0,0.07247079]
[1773246127883,0.07099531,70428.0,70398.0,0.12735777]
[1773246128080,0.07142092,70421.0,70398.0,0.12735777]
[1773246128287,0.07100283,70420.0,70398.0,0.12735777]
[1773246128482,0.00319216,70418.0,70398.0,0.12735777]
[1773246128682,0.07122416,70419.0,70399.0,0.00144]
[1773246129084,0.071224,70419.0,70399.0,0.00144]
[1773246129284,0.00022001,70419.0,70399.0,0.00144]
[1773246129667,0.07121576,70427.0,70400.0,0.19838049]
[1773246129857,0.07121576,70427.0,70400.0,0.07102272]
[1773246130155,0.00022001,70421.0,70400.0,0.07102272]
[1773246130559,0.00166001,70421.0,70400.0,0.07102272]
[1773246131348,0.00166001,70421.0,70399.0,0.07102364]
[1773246131601,0.07100255,70420.0,70381.0,0.07104145]
[1773246131734,0.19836032,70420.0,70383.0,0.00144]
[1773246131942,0.07100255,70420.0,70384.0,0.00144]
[1773246132304,0.07100255,70420.0,70390.0,0.12735777]
[1773246132431,0.00144,70419.0,70390.0,0.12735777]
[1773246132631,0.00144,70419.0,70384.0,0.00144]
[1773246132833,0.00144,70419.0,70381.0,0.07104188]
[1773246133050,0.00144,70419.0,70382.0,0.00144]
[1773246133944,0.07100457,70418.0,70383.0,0.07103988]
[1773246135470,0.07200457,70418.0,70383.0,0.07103988]
[1773246136132,0.00144,70417.0,70383.0,0.07103988]
[1773246137542,0.00144,70417.0,70383.0,0.07123988]
[1773246138164,0.07100658,70416.0,70383.0,0.07123988]
[1773246138576,0.00144,70415.0,70383.0,0.07123988]
[1773246139105,0.00144,70415.0,70384.0,0.00144]
[1773246139306,0.00144,70415.0,70383.0,0.07123988]
[1773246139448,0.00144,70415.0,70384.0,0.00144]
[1773246140800,0.010335,70400.0,70385.0,0.07103786]
[1773246141206,0.0724486,70414.0,70385.0,0.07103786]
[1773246141423,0.00144,70413.0,70385.0,0.07103786]
[1773246141952,0.00144,70412.0,70385.0,0.18273174]
[1773246142470,0.00144,70412.0,70385.0,0.07103786]
[1773246142878,0.07101163,70411.0,70385.0,0.07103786]
[1773246143094,0.07101163,70411.0,70386.0,0.00144]
[1773246143708,0.07101163,70411.0,70385.0,0.07103786]
[1773246143908,0.07101163,70411.0,70387.0,0.00144]
[1773246144612,0.07083226,70411.0,70387.0,0.00144]
[1773246145016,0.07083226,70411.0,70388.0,0.07103483]
[1773246146127,0.07227226,70411.0,70388.0,0.07103483]
[1773246148838,0.12735777,70410.0,70376.0,0.00144]
[1773246149042,0.12735777,70410.0,70375.0,0.07124783]
[1773246149043,0.07101364,70409.0,70375.0,0.07124783]
[1773246150177,0.00144,70408.0,70375.0,0.07124783]
[1773246150364,0.00144,70407.0,70375.0,0.07124783]
[1773246150628,0.00144,70406.0,70375.0,0.07124783]
[1773246151321,0.07101768,70405.0,70375.0,0.07124783]
[1773246151449,0.07245768,70405.0,70375.0,0.07124783]
[1773246151647,0.07101768,70405.0,70375.0,0.07124783]
[1773246151961,0.00144,70404.0,70375.0,0.07124783]
[1773246152161,0.07101768,70405.0,70375.0,0.07124783]
[1773246152471,0.00144,70404.0,70375.0,0.07124783]
[1773246153559,0.0710197,70403.0,70375.0,0.07224783]
[1773246153896,0.0710197,70403.0,70375.0,0.07124783]
[1773246154075,0.0710197,70403.0,70375.0,0.07224783]
[1773246155356,0.0710197,70403.0,70376.0,0.00144]
[1773246155562,0.0710197,70403.0,70375.0,0.07224783]
[1773246155563,0.0710197,70403.0,70375.0,0.0012]
[1773246155737,0.0710197,70403.0,70365.0,0.0002]
[1773246155738,0.12715108,70400.0,70370.0,0.00144]
[1773246156242,0.0710197,70403.0,70370.0,0.00144]
[1773246157397,0.0710197,70403.0,70375.0,0.001]
[1773246157639,0.0710197,70403.0,70375.0,0.07104758]
[1773246157962,0.00144,70402.0,70375.0,0.07104758]
[1773246158438,0.00144,70401.0,70375.0,0.07104758]
[1773246159677,0.07102272,70400.0,70371.0,0.07105137]
[1773246160491,0.07202171,70403.0,70371.0,0.07105137]
[1773246160630,0.07202025,70403.0,70371.0,0.07105137]
[1773246160837,0.07102025,70403.0,70371.0,0.07105137]
[1773246161152,0.001,70402.0,70371.0,0.07105137]
[1773246161475,0.07102025,70403.0,70371.0,0.07105137]
[1773246162049,0.07202025,70403.0,70371.0,0.07105137]
[1773246162249,0.0710197,70404.0,70371.0,0.07105137]
[1773246162450,0.001,70400.0,70371.0,0.07105137]
[1773246163952,0.001,70400.0,70371.0,0.07305137]
[1773246164152,0.07102373,70399.0,70371.0,0.07105137]
[1773246164354,0.001,70400.0,70380.0,0.12715108]
[1773246164555,0.001,70400.0,70371.0,0.07105137]
[1773246164556,0.07101076,70412.0,70390.0,0.12715108]
[1773246164764,0.07138594,70410.0,70391.0,0.00144]
[1773246164965,0.07138594,70410.0,70392.0,0.00144]
[1773246165198,0.00022001,70409.0,70393.0,0.00144]
[1773246165415,0.00022001,70409.0,70394.0,0.00144]
[1773246165609,0.00022001,70409.0,70395.0,0.00144]
[1773246165824,0.00022001,70409.0,70396.0,0.00144]
[1773246166248,0.00022001,70409.0,70397.0,0.07102575]
[1773246168253,0.00022001,70415.0,70397.0,0.07102575]
[1773246168482,0.00022001,70433.0,70397.0,0.07102575]
[1773246168483,0.21233574,70436.0,70407.0,0.12715108]
[1773246168686,0.07135207,70443.0,70420.0,0.12715108]
[1773246168902,0.07135207,70443.0,70407.0,0.00011166]
[1773246168903,0.07135207,70443.0,70421.0,0.00144]
[1773246169099,0.07135207,70443.0,70410.0,0.12715108]
[1773246169100,0.07135207,70443.0,70422.0,0.00144]
[1773246169304,0.0003723,70443.0,70423.0,0.00144]
[1773246169510,0.0003723,70443.0,70430.0,0.12715108]
[1773246169711,0.0003723,70443.0,70431.0,0.00144]
[1773246170062,1e-08,70448.0,70431.0,0.00144]
[1773246170321,1e-08,70448.0,70432.0,0.07099045]
[1773246170681,0.00011167,70448.0,70432.0,0.07099045]
[1773246171861,0.07096448,70458.0,70432.0,0.07099045]
[1773246171862,1e-08,70457.0,70438.0,0.12715108]
[1773246171977,1e-08,70457.0,70440.0,0.12715108]
[1773246172176,1e-08,70457.0,70438.0,0.00011166]
[1773246172177,1e-08,70457.0,70441.0,0.00144]
[1773246172384,1e-08,70457.0,70442.0,0.00144]
[1773246173014,1e-08,70457.0,70438.0,0.07109588]
[1773246173218,1e-08,70457.0,70439.0,0.00144]
[1773246173421,1e-08,70457.0,70440.0,0.00144]
[1773246174230,1e-08,70457.0,70440.0,0.07242141]
[1773246175743,0.00022002,70457.0,70440.0,0.07242141]
[1773246176580,0.00022002,70457.0,70440.0,0.19957249]
[1773246176780,1e-08,70459.0,70440.0,0.19957249]
[1773246177823,0.000384,70464.0,70449.0,0.12715108]
[1773246178027,0.01146001,70472.0,70450.0,0.00144]
[1773246178223,1e-08,70472.0,70460.0,0.12715108]
[1773246178387,0.000384,70485.0,70462.0,0.07096023]
[1773246178719,0.07132166,70485.0,70462.0,0.06776765]
[1773246179148,0.000384,70485.0,70462.0,0.06776765]
[1773246179476,0.3514528,70493.0,70470.0,0.12715108]
[1773246179690,0.07104063,70493.0,70471.0,0.00144]
[1773246180166,2.22492528,70500.0,70480.0,0.12715108]
[1773246180561,2.22492528,70500.0,70482.0,0.07094009]
[1773246180742,2.22492528,70500.0,70482.0,0.07082009]
[1773246180939,2.15400297,70500.0,70482.0,0.07082009]
[1773246181099,1.27070702,70500.0,70490.0,0.12715108]
[1773246181297,1.27070702,70500.0,70491.0,0.00144]
[1773246181298,1.20265808,70500.0,70491.0,0.00144]
[1773246181485,0.82626901,70500.0,70491.0,0.00144]
[1773246182519,0.79309376,70500.0,70492.0,0.07093003]
[1773246182914,0.78497649,70500.0,70492.0,0.07093003]
[1773246183147,0.70497588,70500.0,70492.0,0.07093003]
[1773246183350,0.000375,70520.0,70492.0,0.07093003]
[1773246183556,0.00144,70548.0,70492.0,0.07093003]
[1773246183557,0.00144,70548.0,70509.0,0.12715108]
[1773246183861,0.42174337,70566.0,70500.0,0.12715108]
[1773246183862,0.07087088,70551.0,70520.0,0.12700162]
[1773246184184,0.42174337,70534.0,70521.0,0.00129816]
[1773246184417,0.42174337,70534.0,70510.0,0.12715108]
[1773246184418,0.27482001,70547.0,70522.0,0.00144]
[1773246184660,0.07084723,70575.0,70543.0,0.12715108]
[1773246184883,0.03493612,70593.0,70525.0,0.76352784]
[1773246184884,0.03493612,70593.0,70567.0,0.12715108]
[1773246185097,1.05469448,70618.0,70568.0,0.15784]
[1773246185271,1.05469448,70618.0,70590.0,0.12715108]
[1773246185493,1.05469448,70618.0,70563.0,0.0074]
[1773246185494,1.05480553,70618.0,70567.0,0.0354835]
[1773246185633,1.05480553,70618.0,70568.0,0.00144]
[1773246185634,0.00144,70617.0,70568.0,0.00144]
[1773246185832,0.00144,70617.0,70567.0,0.03552602]
[1773246185833,0.00141658,70592.0,70567.0,0.03552602]
[1773246186078,0.00141658,70592.0,70569.0,0.00144]
[1773246186342,0.00141658,70592.0,70563.0,0.0074]
[1773246186343,0.00144,70599.0,70574.0,0.16498215]
[1773246186596,0.00144,70599.0,70563.0,0.0074]
[1773246186807,0.07082353,70598.0,70563.0,0.0074]
[1773246187014,0.07218353,70598.0,70563.0,0.00921191]
[1773246187178,0.07218353,70598.0,70563.0,0.00777191]
[1773246187536,0.12715108,70590.0,70542.0,0.38100582]
[1773246187789,0.12715108,70580.0,70543.0,0.00144]
[1773246187964,0.0014,70579.0,70544.0,0.00144]
[1773246188167,0.0014,70579.0,70537.0,0.21130402]
[1773246188346,0.0014,70579.0,70537.0,0.0005782]
[1773246188569,0.0708436,70578.0,70537.0,0.0005782]
[1773246188992,0.0708436,70578.0,70536.0,0.00144]
[1773246189340,0.0708436,70578.0,70532.0,0.00144]
[1773246189341,0.03234816,70577.0,70532.0,0.00144]
[1773246189517,0.03234816,70575.0,70529.0,0.01124]
[1773246189690,0.03234816,70575.0,70530.0,0.00144]
[1773246189691,0.12715108,70570.0,70530.0,0.00144]
[1773246189873,0.0708436,70578.0,70535.0,0.07088679]
[1773246190074,0.0014,70577.0,70531.0,0.07089066]
[1773246190279,0.0014,70577.0,70530.0,0.00144]
[1773246190480,0.12715108,70570.0,70529.0,0.01124]
[1773246190688,0.12715108,70570.0,70522.0,0.002]
[1773246190689,0.12715108,70560.0,70522.0,0.002]
[1773246190891,0.00014173,70556.0,70522.0,0.002]
[1773246191091,0.12715108,70550.0,70516.0,0.34840423]
[1773246191297,0.00014173,70556.0,70499.0,0.0006877]
[1773246191298,0.12715108,70540.0,70506.0,0.00144]
[1773246191496,0.0014,70549.0,70500.0,0.07092198]
[1773246191497,0.0014,70539.0,70500.0,0.07092198]
[1773246191751,0.0014,70539.0,70499.0,0.07304968]
[1773246191752,0.0014,70538.0,70499.0,0.0006877]
[1773246191873,0.12715108,70540.0,70500.0,0.0001115]
[1773246191874,0.00136,70537.0,70500.0,0.0001115]
[1773246192088,0.12715108,70530.0,70490.0,0.0014]
[1773246192288,0.12715108,70530.0,70490.0,0.00151161]
[1773246192489,0.03234816,70549.0,70490.0,0.12866269]
[1773246192709,0.07087574,70546.0,70491.0,0.07093104]
[1773246194257,0.07087574,70546.0,70490.0,0.07104265]
[1773246194258,0.12715108,70540.0,70490.0,0.07104265]
[1773246194458,0.12715108,70540.0,70492.0,0.00144]
[1773246194659,0.0014,70539.0,70492.0,0.00144]
[1773246194861,0.07088377,70538.0,70493.0,0.07092902]
[1773246195061,0.07088377,70538.0,70492.0,0.00144]
[1773246195303,0.07088377,70538.0,70490.0,0.00011161]
[1773246195505,0.12715108,70520.0,70486.0,1e-08]
[1773246195789,0.12715108,70510.0,70486.0,1e-08]
[1773246195990,0.00011128,70520.0,70460.0,0.0006877]
[1773246195991,0.0014,70509.0,70472.0,0.0126]
[1773246196152,0.0014,70508.0,70472.0,0.0126]
[1773246196356,0.00136,70507.0,70472.0,0.0126]
[1773246196619,0.00136,70507.0,70472.0,0.01124]
[1773246196751,0.07091595,70506.0,70472.0,0.01124]
[1773246197140,0.07091595,70506.0,70473.0,0.07094915]
[1773246197342,0.07091595,70506.0,70473.0,0.07230915]
[1773246198076,0.070906,70516.0,70480.0,0.12715108]
[1773246198278,0.16191281,70518.0,70473.0,0.07230915]
[1773246198279,0.07090488,70517.0,70490.0,0.12715108]
[1773246198473,0.07090488,70517.0,70492.0,0.0002]
[1773246198474,0.0014,70516.0,70492.0,0.0002]
[1773246198675,0.07090689,70515.0,70493.0,0.13676202]
[1773246198890,0.07090689,70515.0,70494.0,0.13676202]
[1773246199163,0.0014,70514.0,70495.0,0.13676202]
[1773246199376,0.0014,70514.0,70496.0,0.13676202]
[1773246199547,0.0014,70514.0,70497.0,0.13676202]
[1773246199749,0.07090689,70515.0,70498.0,0.13676202]
[1773246200064,0.0014,70513.0,70499.0,0.13676202]
[1773246200291,0.0014,70513.0,70492.0,0.0002]
[1773246200863,0.0014,70513.0,70485.0,0.07233703]
[1773246200864,0.07090991,70512.0,70485.0,0.0014]
[1773246201066,0.0014,70511.0,70485.0,0.07233652]
[1773246201264,0.0014,70510.0,70485.0,0.07233652]
[1773246201464,0.5,70495.0,70485.0,0.0014]
[1773246201661,0.13780065,70495.0,70485.0,0.0014]
[1773246201863,0.13780065,70495.0,70484.0,0.0002]
[1773246202683,0.13780065,70495.0,70484.0,0.00031161]
[1773246202924,0.07232802,70494.0,70486.0,0.00014187]
[1773246203831,0.07232802,70494.0,70472.0,0.01124]
[1773246204042,0.07243926,70494.0,70472.0,0.01124]
[1773246205048,0.07243926,70494.0,70460.0,0.0006877]
[1773246205280,0.12715108,70490.0,70457.0,0.27396006]
[1773246205473,0.12715108,70490.0,70430.0,0.54714811]
[1773246205474,0.12715108,70480.0,70439.0,0.34242026]
[1773246205674,0.05586181,70479.0,70438.0,0.0709834]
[1773246205848,0.05586181,70479.0,70436.0,0.0014]
[1773246206038,0.05586181,70479.0,70432.0,0.0014]
[1773246206240,0.12715108,70470.0,70429.0,0.07099262]
[1773246206462,0.05437381,70469.0,70429.0,0.07099262]
[1773246206743,0.07095419,70468.0,70429.0,0.07099262]
[1773246206980,0.05581381,70467.0,70429.0,0.07136332]
[1773246207188,0.05581381,70467.0,70429.0,0.0003707]
[1773246207363,0.05581381,70467.0,70429.0,0.00074298]
[1773246207566,0.05581381,70467.0,70429.0,0.00218298]
[1773246207791,0.05437381,70467.0,70430.0,0.12715108]
[1773246207968,0.05437381,70467.0,70430.0,0.0003707]
[1773246208149,0.00144,70466.0,70430.0,0.0003707]
[1773246208548,0.00144,70466.0,70431.0,0.00144]
[1773246208793,0.07095821,70464.0,70432.0,0.07099045]
[1773246209122,0.05437381,70467.0,70432.0,0.07099045]
[1773246209123,0.00144,70467.0,70440.0,0.12715108]
[1773246209285,0.00144,70466.0,70441.0,0.00144]
[1773246209477,0.00144,70465.0,70441.0,0.00144]
[1773246209678,0.07094545,70477.0,70451.0,0.00014194]
[1773246209882,0.00144,70476.0,70452.0,0.00144]
[1773246210061,0.00144,70476.0,70451.0,0.00014194]
[1773246210475,0.03394939,70476.0,70451.0,0.00014194]
[1773246210883,0.07094714,70475.0,70451.0,0.00014194]
[1773246211076,0.001,70470.0,70452.0,0.20757194]
[1773246211287,0.00144,70469.0,70453.0,0.20757194]
[1773246211648,0.00144,70468.0,70453.0,0.20757194]
[1773246211844,0.00144,70467.0,70453.0,0.20757194]
[1773246212042,0.00144,70466.0,70453.0,0.20757194]
[1773246212342,0.00144,70465.0,70454.0,0.18593764]
[1773246212519,0.07094714,70475.0,70454.0,0.18593764]
[1773246212520,0.00144,70464.0,70454.0,0.18593764]
[1773246212723,0.00144,70463.0,70451.0,0.00014194]
[1773246212926,0.07096124,70461.0,70451.0,0.00014194]
[1773246213125,0.03233344,70460.0,70451.0,0.00014194]
[1773246213294,0.02310937,70460.0,70451.0,0.00014194]
[1773246213495,0.00144,70459.0,70432.0,0.07236102]
[1773246213896,0.00144,70459.0,70432.0,0.07136102]
[1773246214624,0.00144,70458.0,70432.0,0.07136102]
[1773246215171,0.02726837,70457.0,70432.0,0.07136102]
[1773246215467,0.02582837,70457.0,70435.0,0.27767584]
[1773246215671,0.00144,70456.0,70435.0,0.27767584]
[1773246216182,0.00144,70456.0,70432.0,0.07136102]
[1773246216183,0.00144,70456.0,70436.0,0.27767584]
[1773246216184,0.00129809,70456.0,70436.0,0.27767584]
[1773246216390,0.00129809,70456.0,70434.0,0.00014198]
[1773246216598,0.00144,70455.0,70429.0,0.07099261]
[1773246216849,0.00144,70454.0,70428.0,0.07099348]
[1773246217041,0.0709703,70452.0,70424.0,0.07099852]
[1773246218062,0.02065269,70459.0,70424.0,0.0713708]
[1773246218279,0.00144,70473.0,70432.0,0.001]
[1773246218476,0.0109828,70481.0,70432.0,0.001]
[1773246218477,0.00144,70472.0,70435.0,0.001]
[1773246218682,0.01241865,70471.0,70436.0,0.0014]
[1773246218862,0.01241865,70471.0,70435.0,0.00236]
[1773246218863,0.00144,70470.0,70435.0,0.00236]
[1773246219066,0.01097865,70471.0,70435.0,0.00236]
[1773246219067,0.01097865,70471.0,70440.0,0.12693973]
[1773246219278,0.00144,70476.0,70450.0,0.12693973]
[1773246219488,0.07093405,70488.0,70450.0,0.12693973]
[1773246219489,0.00144,70475.0,70451.0,0.00136]
[1773246219895,0.00144,70475.0,70436.0,0.07098642]
[1773246220094,0.00144,70475.0,70441.0,0.00136]
[1773246220521,0.00155118,70475.0,70442.0,0.00136]
[1773246221164,0.07094815,70474.0,70443.0,0.07097937]
[1773246222329,0.07094815,70474.0,70431.0,0.07099146]
[1773246222546,0.07094815,70474.0,70432.0,0.07238969]
[1773246222955,0.07094815,70474.0,70433.0,0.0014]
[1773246223156,0.07094815,70474.0,70434.0,0.07098844]
[1773246224475,0.00136,70473.0,70440.0,0.12693973]
[1773246224662,0.00136,70472.0,70441.0,0.0014]
[1773246225024,0.00011118,70475.0,70443.0,0.07097937]
[1773246225245,0.00136,70474.0,70443.0,0.07097937]
[1773246225463,0.00158001,70474.0,70443.0,0.07097937]
[1773246227353,0.00158001,70474.0,70441.0,0.07238136]
[1773246227354,0.07094915,70473.0,70441.0,0.07238136]
[1773246227585,0.07094915,70473.0,70420.0,0.12693973]
[1773246227586,0.07094915,70473.0,70433.0,0.07098945]
[1773246227840,0.07094915,70473.0,70436.0,0.0014]
[1773246228056,0.11274247,70444.0,70436.0,0.0014]
[1773246228274,0.11274247,70441.0,70436.0,0.0014]
[1773246228482,0.1413616,70440.0,70436.0,0.0014]
[1773246228630,0.1413616,70439.0,70436.0,0.0014]
[1773246228830,0.1413616,70438.0,70432.0,0.07118945]
[1773246229032,0.11274247,70447.0,70435.0,0.0014]
[1773246229232,0.14121277,70446.0,70436.0,0.07098642]
[1773246229434,0.14121277,70445.0,70436.0,0.07098642]
[1773246229643,0.14121277,70444.0,70436.0,0.07098642]
[1773246229826,0.14121277,70443.0,70436.0,0.07098642]
[1773246230024,0.14121277,70442.0,70436.0,0.07098642]
[1773246230231,0.11274247,70452.0,70436.0,0.07098642]
[1773246230592,0.07220987,70453.0,70435.0,0.0713587]
[1773246231095,0.07220987,70453.0,70435.0,0.0727987]
[1773246231569,0.07220987,70453.0,70433.0,0.5]
[1773246231871,0.07220987,70453.0,70432.0,0.0002]
[1773246232043,0.11274247,70452.0,70432.0,0.0002]
[1773246232365,0.11274247,70452.0,70421.0,0.0002]
[1773246232366,0.12693973,70450.0,70421.0,0.0002]
[1773246232522,0.11274247,70449.0,70421.0,0.0002]
[1773246232987,0.11274247,70448.0,70421.0,0.0002]
[1773246233331,0.07097332,70449.0,70421.0,0.07120148]
[1773246233784,0.07097332,70449.0,70421.0,0.0002]
[1773246234785,0.07097332,70449.0,70413.0,0.0002]
[1773246234976,0.12693973,70440.0,70413.0,0.0002]
[1773246235180,0.00136,70439.0,70413.0,0.0002]
[1773246235397,0.07098441,70438.0,70413.0,0.0002]
[1773246235709,0.00136,70437.0,70413.0,0.0002]
[1773246235858,0.07098441,70438.0,70413.0,0.0002]
[1773246235859,0.00136,70436.0,70413.0,0.0002]
[1773246236061,0.00136,70436.0,70409.0,0.00014203]
[1773246236478,0.00136,70435.0,70409.0,0.00014203]
[1773246236887,0.12693973,70430.0,70409.0,0.00014203]
[1773246237061,0.12693973,70430.0,70391.0,0.07103099]
[1773246237062,0.12693973,70430.0,70390.0,0.0724718]
[1773246237669,0.0384,70428.0,70390.0,0.00144]
[1773246237939,0.00136,70427.0,70390.0,0.07247256]
[1773246238228,0.00136,70427.0,70390.0,0.07284497]
[1773246238386,0.07099348,70429.0,70390.0,0.07284497]
[1773246238575,0.0014,70428.0,70390.0,0.07284497]
[1773246239431,0.0014,70428.0,70390.0,0.07140497]
[1773246239611,0.07099549,70427.0,70390.0,0.07140497]
[1773246240397,0.07099549,70427.0,70390.0,0.1983447]
[1773246240600,0.0014,70426.0,70390.0,0.1983447]
[1773246241249,0.0014,70426.0,70390.0,0.07140497]
[1773246241428,0.0014,70426.0,70390.0,0.1983447]
[1773246241635,0.07099751,70425.0,70401.0,0.07102171]
[1773246241835,0.07099751,70425.0,70402.0,0.00144]
[1773246242458,0.001,70428.0,70400.0,0.07102264]
[1773246242632,0.0014,70431.0,70400.0,0.19796237]
[1773246243008,0.001,70427.0,70400.0,0.19796237]
[1773246243134,0.001,70427.0,70400.0,0.07102264]
[1773246243339,0.0014,70429.0,70400.0,0.07102264]
[1773246243539,0.0014,70430.0,70402.0,0.001]
[1773246243742,0.0014,70430.0,70403.0,0.0710197]
[1773246243972,0.0014,70430.0,70404.0,0.00144]
[1773246244662,0.07098541,70438.0,70404.0,0.00144]
[1773246244860,0.0014,70437.0,70404.0,0.00144]
[1773246245160,0.07098541,70438.0,70404.0,0.00144]
[1773246245478,0.0014,70437.0,70404.0,0.00144]
[1773246245838,0.07098642,70436.0,70405.0,0.07101768]
[1773246246043,0.07238642,70436.0,70405.0,0.07101768]
[1773246246675,0.07238642,70436.0,70404.0,0.07215973]
[1773246246854,0.07238642,70436.0,70404.0,0.07115973]
[1773246247279,0.07238642,70436.0,70404.0,0.07215973]
[1773246247482,0.07238642,70436.0,70404.0,0.07115973]
[1773246247642,0.07238642,70436.0,70404.0,0.00014204]
[1773246247847,0.12693973,70420.0,70384.0,0.00144]
[1773246248086,0.00144,70419.0,70380.0,0.07104273]
[1773246248269,0.12693973,70410.0,70380.0,0.00144]
[1773246248467,0.00144,70409.0,70380.0,0.0710429]
[1773246248633,0.00144,70409.0,70379.0,0.07104383]
[1773246249144,0.00144,70409.0,70378.0,0.0009781]
[1773246249753,0.07101465,70408.0,70378.0,0.0009781]
[1773246249956,0.12693973,70400.0,70375.0,0.0002]
[1773246250185,0.12693973,70400.0,70371.0,0.0002]
[1773246250186,0.00144,70399.0,70371.0,0.0002]
[1773246250388,0.12693973,70390.0,70358.0,0.00727]
[1773246250794,0.07101465,70408.0,70358.0,0.0710645]
[1773246251089,0.12693973,70400.0,70357.0,0.07106512]
[1773246251266,0.00144,70399.0,70357.0,0.07106512]
[1773246251757,0.07101465,70408.0,70375.0,0.0002]
[1773246251876,0.07101768,70405.0,70375.0,0.0002]
[1773246252109,0.00144,70404.0,70375.0,0.07124784]
[1773246252323,0.11274247,70399.0,70375.0,0.07124784]
[1773246252524,0.11274247,70401.0,70375.0,0.07124784]
[1773246252728,0.11274247,70402.0,70375.0,0.07124784]
[1773246252977,0.001,70409.0,70380.0,0.12693973]
[1773246253188,0.001,70408.0,70381.0,0.00014208]
[1773246253578,0.001,70409.0,70381.0,0.00014208]
[1773246254017,0.001,70409.0,70381.0,0.07118398]
[1773246254192,0.001,70408.0,70381.0,0.07118398]
[1773246254395,0.14053868,70413.0,70390.0,0.12693973]
[1773246254538,0.14053868,70414.0,70390.0,0.00037074]
[1773246254944,0.01124,70415.0,70391.0,0.00144]
[1773246255144,0.00144,70413.0,70391.0,0.00144]
[1773246255745,0.01124,70415.0,70391.0,0.00144]
[1773246255880,0.16911371,70430.0,70401.0,0.07102171]
[1773246256081,0.00144,70429.0,70402.0,0.00144]
[1773246256232,0.16911371,70427.0,70402.0,0.00144]
[1773246256443,0.16911371,70428.0,70402.0,0.00144]
[1773246256627,0.00144,70429.0,70402.0,0.00144]
[1773246257326,0.16911371,70427.0,70402.0,0.00144]
[1773246257537,0.07099263,70430.0,70402.0,0.00144]
[1773246257945,0.00144,70431.0,70403.0,0.0710197]
[1773246258153,0.07097433,70448.0,70410.0,0.12693973]
[1773246258364,0.00144,70447.0,70410.0,0.12693973]
[1773246258568,0.00144,70447.0,70411.0,0.00144]
[1773246258930,0.07097433,70448.0,70411.0,0.00144]
[1773246259134,0.00144,70447.0,70411.0,0.00144]
[1773246259796,0.00022001,70430.0,70411.0,0.00144]
[1773246260200,0.00022001,70430.0,70412.0,0.07101062]
[1773246262175,0.07099348,70429.0,70412.0,0.07101062]